{"text_format":"1","workbook":"xlsx","n_sheets":1,"sheets":["Sheet1"],"not_rendered":{"charts":0,"images":0,"macros":0,"external_links":0,"defined_names":6,"comments":0,"pivot_tables":0},"unopened":[],"bounds":{"document_bytes":16777216,"sheet_cells":100000,"rows_first":2000,"rows_last":500,"rows_between":2000,"halvings":0,"cell_chars":16384,"cell_head_chars":4096},"cells_cut":0,"cells_raw":0,"read":"whole","date_system":"1900"}

{"sheet":"Sheet1","index":0,"n_rows":62,"n_cols":16,"rows_kept":62,"cut":false,"hidden":false,"merged":[[12,5,12,6],[11,2,11,4],[11,0,11,1],[9,7,9,9],[11,5,11,6],[10,5,10,6],[9,5,9,6],[9,0,9,1],[10,0,10,1],[9,2,9,4],[10,2,10,4],[7,5,7,9],[30,0,30,9],[14,0,14,9],[6,5,6,9],[0,0,0,9],[1,0,1,9],[2,0,2,9],[12,7,12,9],[6,0,6,4],[7,0,7,4],[3,0,3,9],[4,0,4,4],[5,0,5,4],[4,5,4,9],[5,5,5,9],[11,7,11,9],[8,0,8,9],[45,0,45,9],[44,0,44,9],[43,0,43,9],[42,0,42,9],[12,2,12,4],[23,0,23,9],[24,0,24,9],[22,0,22,9],[13,0,13,9],[41,7,41,8],[12,0,12,1],[38,0,38,6],[31,0,31,9],[32,0,32,9],[10,7,10,9]]}
["EDUCATIONAL ENTERPRISES RECORDING COMPANY\nPost Office Box 291\nDeer Park, Texas 77536\nPhone or Fax: (281) 479-6943 www.eercmusic.com"]
[]
["2019-2020 New Mexico ACDA\nCHOIR ORDER FORM FOR REHEARSAL CDs"]
[]
[]
[]
[]
[]
["The credit card owners address is required when using a credit card.  Pllease make sure the address above is correct."]
["Email Address:",null,null,null,null,"Home Phone:"]
["School PO Number:",null,null,null,null,"School Phone:"]
["Name on Card:",null,null,null,null,"Credit Card Type:"]
["Credit Card #:",null,null,null,null,"Expiration Date:"]
[]
["ACDA YOUTH MIXED CHOIR REHEARSAL CDs. "]
[null,null,null,null,null,null,"Quantity","Price",null,"Total",null,null,null,null,null,"     "]
["Soprano",null,null,null,null,null,0,11,null,{"$f":"(G17*H17)","v":0}]
["Alto",null,null,null,null,null,0,11,null,{"$f":"(G18*H18)","v":0}]
["Tenor",null,null,null,null,null,0,11,null,{"$f":"(G19*H19)","v":0}]
["Bass",null,null,null,null,null,0,11,null,{"$f":"(G20*H20)","v":0}]
["Mix-Down",null,null,null,null,null,0,11,null,{"$f":"(G21*H21)","v":0}]
[false,null,null,null,null,null,{"$f":"SUM(G17:G21)","v":0},0,"Sub-Total:",{"$f":"SUM(J17:J21)","v":0}]
[]
["ACDA YOUTH TREBLE CHOIR REHEARSAL CDs. "]
[]
[null,null,null,null,null,null,"Quantity","Price",null,"Total"]
["Soprano",null,null,null,null,null,0,11,null,{"$f":"(G27*H27)","v":0}]
["Alto",null,null,null,null,null,0,11,null,{"$f":"(G28*H28)","v":0}]
["Mixdown",null,null,null,null,null,0,11,null,{"$f":"(G29*H29)","v":0}]
[{"$f":"SUM(G22:G29)","v":0},null,null,null,{"$f":"(G22+G30+G38)","v":0},null,{"$f":"SUM(G27:G29)","v":0},{"$f":"CONCATENATE(H22,E30)","v":"00"},"Sub-Total:",{"$f":"SUM(J27:J29)","v":0}]
[]
["ACDA ELEMENTARY TREBLE CHOIR REHEARSAL CDs. "]
[]
[null,null,null,null,null,null,"Quantity","Price",null,"Total"]
["Soprano",null,null,null,null,null,0,11,null,{"$f":"(G35*H35)","v":0}]
["Alto",null,null,null,null,null,0,11,null,{"$f":"(G36*H36)","v":0}]
["Mixdown",null,null,null,null,null,0,11,null,{"$f":"(G37*H37)","v":0}]
[{"$f":"SUM(G30:G37)","v":0},null,null,null,{"$f":"(G30+G38)","v":0},null,{"$f":"SUM(G35:G37)","v":0},{"$f":"(+G22+G30+G38)","v":0},"Sub-Total:",{"$f":"SUM(J35:J37)","v":0}]
["Shipping Cost: "]
["$7.50 for 1st individual CD; and 50¢ each additional item $12.50 maximum"]
["All shipments are sent priority mail unless otherwise requested.  ",null,null,null,null,null,null,null,"Shipping",{"$f":"IF(A22=FALSE,IF(E30>=11,12.5,VLOOKUP(H30,C51:D62,2,TRUE)),0)","v":0}]
[null,null,null,null,null,null,null,"GRAND TOTAL",null,{"$f":"(J22+J30+J38+J41)","v":0}]
[]
["Ordering instructions: Fill out the shipping, billing, telephone numbers, and purchase order information.  Select the CDs"]
["you wish to purchase by entering the quantity of each CD you wish to purchase. We accept money orders, checks, credit cards "]
["and school purchase orders.  If you are paying by School PO please email the completed form to sales@eercmusic.com."]
["If paying by check or money order please mail the completed form with your payment to Educational Enterprises"]
["Recording Company, PO Box 291, Deer Park, Texas 77536.  Payment must accompany individual orders"]
[null,null,null,null,null,null,null,{"$f":"CONCATENATE(G22,G30)","v":"00"}]
[]
[null,null,"00",0]
[null,null,"01",7.5]
[null,null,"02",8]
[null,null,"03",8.5]
[null,null,"04",9]
[null,null,"05",9.5]
[null,null,"06",10]
[null,null,"07",10.5]
[null,null,"08",11]
[null,null,"09",11.5]
[null,null,"010",12]
[null,null,"011",12.5]